[Event "*** Titled Tuesday 3|2 Blitz"]
[Site "Chess.com"]
[Date "2016.03.01"]
[Round "2"]
[White "kleinebeer98"]
[Black "Gevorg_Harutjunyan"]
[Result "0-1"]
[WhiteElo "2501"]
[BlackElo "2618"]
[TimeControl "180+2"]
[EndTime "11:53:06 PST"]
[Termination "Gevorg_Harutjunyan won by checkmate"]

1. e4 {[%clk 0:03:01.9]} 1... c6 {[%clk 0:03:00.9]} 2. d4 {[%clk 0:03:02.6]}
2... d5 {[%clk 0:03:02.3]} 3. Nd2 {[%clk 0:03:04.2]} 3... dxe4 {[%clk
0:03:03.6]} 4. Nxe4 {[%clk 0:03:06.1]} 4... Bf5 {[%clk 0:03:05.1]} 5. Ng3 {[%clk
0:03:07.4]} 5... Bg6 {[%clk 0:03:06.6]} 6. h4 {[%clk 0:03:08.8]} 6... h6 {[%clk
0:03:08]} 7. Nf3 {[%clk 0:03:10.3]} 7... Nd7 {[%clk 0:03:08.9]} 8. h5 {[%clk
0:03:11.9]} 8... Bh7 {[%clk 0:03:10.3]} 9. Bd3 {[%clk 0:03:13.5]} 9... Bxd3
{[%clk 0:03:11.6]} 10. Qxd3 {[%clk 0:03:15.4]} 10... Ngf6 {[%clk 0:03:13.1]} 11.
Bd2 {[%clk 0:03:17]} 11... e6 {[%clk 0:03:14.1]} 12. O-O-O {[%clk 0:03:18.6]}
12... Be7 {[%clk 0:03:14.8]} 13. Kb1 {[%clk 0:03:20.2]} 13... Qc7 {[%clk
0:03:14.7]} 14. Ne4 {[%clk 0:03:18.3]} 14... Rd8 {[%clk 0:03:14.2]} 15. Nxf6+
{[%clk 0:03:01.1]} 15... Bxf6 {[%clk 0:03:12.4]} 16. Qe4 {[%clk 0:02:54.2]}
16... Qb6 {[%clk 0:03:06.1]} 17. Bc3 {[%clk 0:02:25]} 17... Qb5 {[%clk
0:03:01.8]} 18. b3 {[%clk 0:02:17.2]} 18... Nb6 {[%clk 0:02:46.7]} 19. Bb2
{[%clk 0:02:10.7]} 19... a5 {[%clk 0:02:29.6]} 20. a4 {[%clk 0:01:49.3]} 20...
Qb4 {[%clk 0:02:26.1]} 21. g4 {[%clk 0:01:40.5]} 21... c5 {[%clk 0:02:01.2]} 22.
Ka2 {[%clk 0:01:15.4]} 22... Nd5 {[%clk 0:01:37.2]} 23. Qd3 {[%clk 0:00:32.5]}
23... cxd4 {[%clk 0:01:38.2]} 24. Nxd4 {[%clk 0:00:30.6]} 24... O-O {[%clk
0:01:36.4]} 25. c4 {[%clk 0:00:24.2]} 25... Nf4 {[%clk 0:01:01.6]} 26. Qe4
{[%clk 0:00:25.3]} 26... Qb6 {[%clk 0:00:55.5]} 27. Qxf4 {[%clk 0:00:20]} 27...
e5 {[%clk 0:00:57]} 28. Qf5 {[%clk 0:00:19.2]} 28... exd4 {[%clk 0:00:57]} 29.
f4 {[%clk 0:00:20.7]} 29... Rfe8 {[%clk 0:00:30.7]} 30. Rhe1 {[%clk 0:00:18.8]}
30... Re3 {[%clk 0:00:25.3]} 31. Rxe3 {[%clk 0:00:15.5]} 31... dxe3 {[%clk
0:00:27.2]} 32. Bxf6 {[%clk 0:00:16.2]} 32... Rxd1 {[%clk 0:00:20.2]} 33. Qc8+
{[%clk 0:00:17.1]} 33... Kh7 {[%clk 0:00:21.3]} 34. Qf5+ {[%clk 0:00:18.8]}
34... g6 {[%clk 0:00:20.8]} 35. hxg6+ {[%clk 0:00:20.1]} 35... fxg6 {[%clk
0:00:22]} 36. Qe5 {[%clk 0:00:17.9]} 36... Rd2+ {[%clk 0:00:21]} 37. Ka3 {[%clk
0:00:18.1]} 37... Qb4# {[%clk 0:00:21.1]} 0-1

[Event "*** Titled Tuesday 3|2 Blitz"]
[Site "Chess.com"]
[Date "2016.03.01"]
[Round "2"]
[White "Andrejkin"]
[Black "chessbia"]
[Result "0-1"]
[WhiteElo "2113"]
[BlackElo "2068"]
[TimeControl "180+2"]
[EndTime "11:53:12 PST"]
[Termination "chessbia won by checkmate"]

1. e4 {[%clk 0:02:48]} 1... e5 {[%clk 0:03:00.3]} 2. Nf3 {[%clk 0:02:46.2]} 2...
Nc6 {[%clk 0:03:01.1]} 3. Bc4 {[%clk 0:02:45.8]} 3... Bc5 {[%clk 0:03:01.6]} 4.
d3 {[%clk 0:02:44.1]} 4... a6 {[%clk 0:03:00.7]} 5. Nc3 {[%clk 0:02:44.9]} 5...
h6 {[%clk 0:02:57.4]} 6. Be3 {[%clk 0:02:43.5]} 6... Ba7 {[%clk 0:02:52.2]} 7.
Bxa7 {[%clk 0:02:39.7]} 7... Rxa7 {[%clk 0:02:52.8]} 8. d4 {[%clk 0:02:41]} 8...
exd4 {[%clk 0:02:48.1]} 9. Nxd4 {[%clk 0:02:38.9]} 9... Nge7 {[%clk 0:02:48.2]}
10. O-O {[%clk 0:02:37.8]} 10... O-O {[%clk 0:02:48.6]} 11. f4 {[%clk
0:02:34.2]} 11... b5 {[%clk 0:02:48.1]} 12. Bb3 {[%clk 0:02:30.9]} 12... d6
{[%clk 0:02:48.9]} 13. f5 {[%clk 0:02:29.1]} 13... Nxd4 {[%clk 0:02:39.1]} 14.
Qxd4 {[%clk 0:02:27]} 14... c5 {[%clk 0:02:40.3]} 15. Qe3 {[%clk 0:02:19.1]}
15... Nc6 {[%clk 0:02:37.8]} 16. f6 {[%clk 0:02:18]} 16... c4 {[%clk 0:02:38.8]}
17. Nd5 {[%clk 0:02:10.1]} 17... cxb3 {[%clk 0:02:28.4]} 18. Qg3 {[%clk
0:02:06.2]} 18... g6 {[%clk 0:02:25.6]} 19. Qh4 {[%clk 0:02:05.3]} 19... Kh7
{[%clk 0:02:25.1]} 20. axb3 {[%clk 0:02:03.7]} 20... Be6 {[%clk 0:02:20.7]} 21.
Ne3 {[%clk 0:01:49.4]} 21... Qb6 {[%clk 0:02:18.4]} 22. Rae1 {[%clk 0:01:47.8]}
22... Ne5 {[%clk 0:02:14.8]} 23. Kh1 {[%clk 0:01:46.4]} 23... Rc8 {[%clk
0:02:04.8]} 24. Qf4 {[%clk 0:01:12.9]} 24... a5 {[%clk 0:01:54.9]} 25. h4 {[%clk
0:01:08]} 25... a4 {[%clk 0:01:52.6]} 26. b4 {[%clk 0:01:05.7]} 26... a3 {[%clk
0:01:52.9]} 27. bxa3 {[%clk 0:01:06]} 27... Rxa3 {[%clk 0:01:53.4]} 28. h5
{[%clk 0:00:55.2]} 28... Rcc3 {[%clk 0:01:46.9]} 29. Nf5 {[%clk 0:00:31]} 29...
g5 {[%clk 0:01:19.2]} 30. Qd2 {[%clk 0:00:22]} 30... Bxf5 {[%clk 0:01:16]} 31.
Rxf5 {[%clk 0:00:19.9]} 31... Re3 {[%clk 0:00:49.2]} 32. Ref1 {[%clk 0:00:18]}
32... Qc6 {[%clk 0:00:37.8]} 33. Rxe5 {[%clk 0:00:12.9]} 33... dxe5 {[%clk
0:00:37.7]} 34. Qd8 {[%clk 0:00:14.8]} 34... Qxe4 {[%clk 0:00:30.2]} 35. Qf8
{[%clk 0:00:13.5]} 35... Rh3+ {[%clk 0:00:30]} 36. Kg1 {[%clk 0:00:12.7]} 36...
Qe3+ {[%clk 0:00:31]} 37. Rf2 {[%clk 0:00:11.6]} 37... Ra1# {[%clk 0:00:31.3]}
0-1

[Event "*** Titled Tuesday 3|2 Blitz"]
[Site "Chess.com"]
[Date "2016.03.01"]
[Round "2"]
[White "viditchess"]
[Black "KNVB"]
[Result "1-0"]
[WhiteElo "2434"]
[BlackElo "2352"]
[TimeControl "180+2"]
[EndTime "11:53:15 PST"]
[Termination "viditchess won by resignation"]

1. d4 {[%clk 0:03:01.9]} 1... e6 {[%clk 0:02:59.4]} 2. Nf3 {[%clk 0:02:59.2]}
2... Nf6 {[%clk 0:02:59.1]} 3. c4 {[%clk 0:02:59.6]} 3... b6 {[%clk 0:03:00]} 4.
e3 {[%clk 0:02:59.4]} 4... Bb7 {[%clk 0:02:55.8]} 5. Nc3 {[%clk 0:03:00.5]} 5...
Be7 {[%clk 0:02:48]} 6. d5 {[%clk 0:02:41.9]} 6... Bb4 {[%clk 0:02:46.3]} 7. Bd2
{[%clk 0:02:39.2]} 7... O-O {[%clk 0:02:32.9]} 8. dxe6 {[%clk 0:02:26.6]} 8...
dxe6 {[%clk 0:02:25.9]} 9. Qc2 {[%clk 0:02:27.3]} 9... Nbd7 {[%clk 0:02:03.3]}
10. O-O-O {[%clk 0:02:16.6]} 10... Qe7 {[%clk 0:01:51.5]} 11. a3 {[%clk
0:02:08.4]} 11... a5 {[%clk 0:01:39.5]} 12. Nd4 {[%clk 0:01:57.8]} 12... Nc5
{[%clk 0:01:26.3]} 13. f3 {[%clk 0:01:56.9]} 13... Bxc3 {[%clk 0:01:17.9]} 14.
Bxc3 {[%clk 0:01:58.8]} 14... a4 {[%clk 0:01:16.5]} 15. Be2 {[%clk 0:01:53.2]}
15... e5 {[%clk 0:01:04.6]} 16. Nf5 {[%clk 0:01:51.4]} 16... Qe6 {[%clk
0:01:06.1]} 17. Bb4 {[%clk 0:01:14.3]} 17... Nb3+ {[%clk 0:00:55.3]} 18. Kb1
{[%clk 0:01:14.5]} 18... Rfd8 {[%clk 0:00:44.2]} 19. Rxd8+ {[%clk 0:00:50]}
19... Rxd8 {[%clk 0:00:46.1]} 20. Rd1 {[%clk 0:00:39.6]} 20... Rd7 {[%clk
0:00:26.6]} 21. Rxd7 {[%clk 0:00:34.8]} 21... Nxd7 {[%clk 0:00:22.8]} 22. Ne7+
{[%clk 0:00:30.7]} 22... Kh8 {[%clk 0:00:23.6]} 23. Nd5 {[%clk 0:00:32.6]} 23...
c6 {[%clk 0:00:15.7]} 24. Nc3 {[%clk 0:00:25.8]} 24... Nbc5 {[%clk 0:00:09.1]}
25. Nxa4 {[%clk 0:00:25.4]} 25... Nxa4 {[%clk 0:00:05.2]} 26. Qxa4 {[%clk
0:00:27.3]} 26... c5 {[%clk 0:00:06.1]} 27. Bc3 {[%clk 0:00:27.5]} 27... h6
{[%clk 0:00:07.3]} 28. e4 {[%clk 0:00:27.5]} 28... Kh7 {[%clk 0:00:07.7]} 29.
Qa7 {[%clk 0:00:27.4]} 29... Bc6 {[%clk 0:00:08]} 30. Qc7 {[%clk 0:00:28.1]}
30... Qg6 {[%clk 0:00:08.8]} 31. g4 {[%clk 0:00:28.8]} 31... Qf6 {[%clk
0:00:06]} 32. Ka2 {[%clk 0:00:28.8]} 32... h5 {[%clk 0:00:06]} 33. gxh5 {[%clk
0:00:28.8]} 33... Qe6 {[%clk 0:00:04.5]} 34. b3 {[%clk 0:00:27.7]} 34... f6
{[%clk 0:00:05.2]} 35. Bd3 {[%clk 0:00:23.6]} 35... Kh6 {[%clk 0:00:05.2]} 36.
Be2 {[%clk 0:00:20.7]} 36... Kxh5 {[%clk 0:00:03.5]} 37. f4+ {[%clk 0:00:21.9]}
37... Kh6 {[%clk 0:00:04.5]} 38. f5 {[%clk 0:00:23.6]} 38... Qe8 {[%clk
0:00:03.6]} 39. Qxc6 {[%clk 0:00:24.6]} 1-0

[Event "*** Titled Tuesday 3|2 Blitz"]
[Site "Chess.com"]
[Date "2016.03.01"]
[Round "2"]
[White "pedromartinez91"]
[Black "DagurR"]
[Result "0-1"]
[WhiteElo "2333"]
[BlackElo "2271"]
[TimeControl "180+2"]
[EndTime "11:53:26 PST"]
[Termination "DagurR won by resignation"]

1. e4 {[%clk 0:03:01.9]} 1... e6 {[%clk 0:03:01.1]} 2. d4 {[%clk 0:03:02.1]}
2... d5 {[%clk 0:03:02.9]} 3. Nd2 {[%clk 0:03:03.6]} 3... h6 {[%clk 0:03:03.9]}
4. Ngf3 {[%clk 0:03:03.8]} 4... Nf6 {[%clk 0:03:04.5]} 5. e5 {[%clk 0:03:04.4]}
5... Nfd7 {[%clk 0:03:06.2]} 6. Bd3 {[%clk 0:03:03.8]} 6... c5 {[%clk
0:03:07.9]} 7. c3 {[%clk 0:03:05.4]} 7... Nc6 {[%clk 0:03:09.6]} 8. Bc2 {[%clk
0:02:57.4]} 8... g5 {[%clk 0:03:02.4]} 9. h3 {[%clk 0:02:53.9]} 9... Qb6 {[%clk
0:03:00.9]} 10. Nb3 {[%clk 0:02:53.8]} 10... cxd4 {[%clk 0:03:00.9]} 11. cxd4
{[%clk 0:02:53.4]} 11... a5 {[%clk 0:02:59.9]} 12. a4 {[%clk 0:02:45]} 12... Nb4
{[%clk 0:03:01]} 13. Bb1 {[%clk 0:02:36.6]} 13... Qa6 {[%clk 0:02:55.5]} 14. Qe2
{[%clk 0:02:36.2]} 14... b6 {[%clk 0:02:52.3]} 15. Qxa6 {[%clk 0:02:14]} 15...
Bxa6 {[%clk 0:02:51.6]} 16. Bd2 {[%clk 0:02:15.4]} 16... Rc8 {[%clk 0:02:48.6]}
17. Bc3 {[%clk 0:02:15.9]} 17... Nd3+ {[%clk 0:02:38]} 18. Bxd3 {[%clk
0:02:16.2]} 18... Bxd3 {[%clk 0:02:39.9]} 19. Kd2 {[%clk 0:02:17.4]} 19... Ba6
{[%clk 0:02:30.2]} 20. Nc1 {[%clk 0:02:16.7]} 20... f6 {[%clk 0:02:25.4]} 21.
Re1 {[%clk 0:02:13.7]} 21... f5 {[%clk 0:02:22.5]} 22. Nd3 {[%clk 0:02:05.8]}
22... Be7 {[%clk 0:02:23.4]} 23. Nh2 {[%clk 0:02:02.1]} 23... h5 {[%clk
0:01:58.3]} 24. Rab1 {[%clk 0:01:49.7]} 24... g4 {[%clk 0:01:41]} 25. b4 {[%clk
0:01:49.9]} 25... Bg5+ {[%clk 0:01:42.2]} 26. Kc2 {[%clk 0:01:45.3]} 26... Ke7
{[%clk 0:01:18.8]} 27. b5 {[%clk 0:01:45.8]} 27... Bb7 {[%clk 0:01:19.7]} 28. f4
{[%clk 0:01:41.1]} 28... gxf3 {[%clk 0:01:06.3]} 29. Nxf3 {[%clk 0:01:41.6]}
29... Bh6 {[%clk 0:01:07.3]} 30. Kb3 {[%clk 0:01:31.4]} 30... Rhg8 {[%clk
0:01:08.8]} 31. Re2 {[%clk 0:01:32.5]} 31... Rg3 {[%clk 0:01:00.3]} 32. Be1
{[%clk 0:01:30.9]} 32... Rg7 {[%clk 0:00:57.9]} 33. Bd2 {[%clk 0:01:23.9]} 33...
Bxd2 {[%clk 0:00:54.9]} 34. Rxd2 {[%clk 0:01:25.1]} 34... Rc4 {[%clk 0:00:31.5]}
35. Rc1 {[%clk 0:01:18.5]} 35... Rg3 {[%clk 0:00:21.6]} 36. Nf4 {[%clk
0:01:13.6]} 36... Rxc1 {[%clk 0:00:21]} 37. Ne2 {[%clk 0:01:12.2]} 37... Rxf3+
{[%clk 0:00:20.8]} 38. gxf3 {[%clk 0:01:13.3]} 38... Rc4 {[%clk 0:00:21.7]} 39.
Nf4 {[%clk 0:01:11.9]} 39... Nc5+ {[%clk 0:00:21.3]} 40. dxc5 {[%clk 0:00:58.3]}
40... Rxf4 {[%clk 0:00:22.2]} 41. c6 {[%clk 0:00:59.9]} 41... Rxf3+ {[%clk
0:00:23.1]} 42. Kb2 {[%clk 0:01:00.3]} 42... Bc8 {[%clk 0:00:24.7]} 43. Rg2
{[%clk 0:01:01.2]} 43... Kf7 {[%clk 0:00:26.3]} 44. Rg5 {[%clk 0:01:02]} 44...
Rxh3 {[%clk 0:00:26.1]} 45. Kc2 {[%clk 0:00:59.1]} 45... Rh4 {[%clk 0:00:23.8]}
46. Kb3 {[%clk 0:00:59.1]} 46... f4 {[%clk 0:00:24.7]} 47. Kc3 {[%clk
0:00:56.4]} 47... f3 {[%clk 0:00:26.3]} 48. Rg1 {[%clk 0:00:56.6]} 48... Rf4
{[%clk 0:00:27]} 49. Kd3 {[%clk 0:00:57.1]} 49... Rf5 {[%clk 0:00:28.6]} 50. Ke3
{[%clk 0:00:55.9]} 50... h4 {[%clk 0:00:29.4]} 51. Rh1 {[%clk 0:00:56.3]} 51...
f2 {[%clk 0:00:29.7]} 52. Rf1 {[%clk 0:00:56.4]} 52... h3 {[%clk 0:00:30.9]} 53.
Ke2 {[%clk 0:00:56.6]} 53... h2 {[%clk 0:00:31.8]} 0-1

[Event "*** Titled Tuesday 3|2 Blitz"]
[Site "Chess.com"]
[Date "2016.03.01"]
[Round "2"]
[White "Blitzstream"]
[Black "Izoria123"]
[Result "0-1"]
[WhiteElo "2447"]
[BlackElo "2550"]
[TimeControl "180+2"]
[EndTime "11:53:47 PST"]
[Termination "Izoria123 won by checkmate"]

1. d4 {[%clk 0:03:01.9]} 1... d6 {[%clk 0:02:58.4]} 2. g3 {[%clk 0:02:55.4]}
2... g6 {[%clk 0:02:58.5]} 3. Bg2 {[%clk 0:02:56.4]} 3... Bg7 {[%clk 0:03:00.2]}
4. e4 {[%clk 0:02:56.9]} 4... c5 {[%clk 0:03:00.7]} 5. Ne2 {[%clk 0:02:56.3]}
5... cxd4 {[%clk 0:03:00.3]} 6. Nxd4 {[%clk 0:02:57.2]} 6... Nc6 {[%clk
0:03:02]} 7. Nb3 {[%clk 0:02:38.6]} 7... a5 {[%clk 0:03:00.1]} 8. Nc3 {[%clk
0:02:24]} 8... a4 {[%clk 0:02:59.8]} 9. Nd2 {[%clk 0:02:25.1]} 9... a3 {[%clk
0:03:00.4]} 10. O-O {[%clk 0:02:13.7]} 10... Nh6 {[%clk 0:02:22.5]} 11. Rb1
{[%clk 0:02:03.8]} 11... O-O {[%clk 0:02:18.5]} 12. Nc4 {[%clk 0:01:45.1]} 12...
Ng4 {[%clk 0:02:11.2]} 13. Nd5 {[%clk 0:01:28.3]} 13... axb2 {[%clk 0:02:11.4]}
14. Bxb2 {[%clk 0:01:30.2]} 14... Rxa2 {[%clk 0:02:11]} 15. Bxg7 {[%clk
0:01:29.7]} 15... Kxg7 {[%clk 0:02:12.9]} 16. Ncb6 {[%clk 0:01:13.9]} 16... Be6
{[%clk 0:02:04.9]} 17. h3 {[%clk 0:01:01.3]} 17... Nf6 {[%clk 0:01:26.8]} 18.
Ra1 {[%clk 0:01:02.4]} 18... Rxa1 {[%clk 0:01:25.5]} 19. Qxa1 {[%clk 0:01:03.3]}
19... Bxd5 {[%clk 0:01:26.3]} 20. Nxd5 {[%clk 0:00:52.8]} 20... e5 {[%clk
0:01:26.6]} 21. f4 {[%clk 0:00:43.2]} 21... Nxd5 {[%clk 0:01:12.8]} 22. exd5
{[%clk 0:00:42.8]} 22... Nd4 {[%clk 0:01:14.4]} 23. fxe5 {[%clk 0:00:37.1]}
23... dxe5 {[%clk 0:01:16.3]} 24. Qe1 {[%clk 0:00:26.6]} 24... Qd6 {[%clk
0:00:58.2]} 25. c3 {[%clk 0:00:25.8]} 25... Nb3 {[%clk 0:00:58.2]} 26. c4 {[%clk
0:00:19.1]} 26... Nc5 {[%clk 0:00:56.1]} 27. Qb4 {[%clk 0:00:19.8]} 27... f5
{[%clk 0:00:55.9]} 28. Qc3 {[%clk 0:00:17.4]} 28... Kg8 {[%clk 0:00:51.7]} 29.
Rb1 {[%clk 0:00:18.3]} 29... e4 {[%clk 0:00:52.2]} 30. Rb5 {[%clk 0:00:19.2]}
30... Re8 {[%clk 0:00:41.4]} 31. Qe3 {[%clk 0:00:20.1]} 31... b6 {[%clk
0:00:41.6]} 32. Bf1 {[%clk 0:00:19.6]} 32... Nd7 {[%clk 0:00:39.2]} 33. Be2
{[%clk 0:00:17.8]} 33... Ra8 {[%clk 0:00:37.5]} 34. h4 {[%clk 0:00:11.9]} 34...
Ra3 {[%clk 0:00:33.7]} 35. Rb3 {[%clk 0:00:10.5]} 35... Ra2 {[%clk 0:00:26.9]}
36. Kh2 {[%clk 0:00:07.2]} 36... Ne5 {[%clk 0:00:22.2]} 37. Kh3 {[%clk
0:00:06.3]} 37... Nd7 {[%clk 0:00:23.3]} 38. Rb5 {[%clk 0:00:04.8]} 38... Ra3
{[%clk 0:00:23.9]} 39. Rb3 {[%clk 0:00:03.1]} 39... Rxb3 {[%clk 0:00:25.2]} 40.
Qxb3 {[%clk 0:00:04.9]} 40... Kf7 {[%clk 0:00:25.9]} 41. Qe3 {[%clk 0:00:06.4]}
41... Qe5 {[%clk 0:00:22.9]} 42. Qh6 {[%clk 0:00:06.1]} 42... Nf6 {[%clk
0:00:23.2]} 43. h5 {[%clk 0:00:06.4]} 43... e3 {[%clk 0:00:22.9]} 44. hxg6+
{[%clk 0:00:07.6]} 44... hxg6 {[%clk 0:00:24.6]} 45. Qh8 {[%clk 0:00:08.9]}
45... Qe4 {[%clk 0:00:25.4]} 46. Kh2 {[%clk 0:00:08.6]} 46... Qc2 {[%clk
0:00:25.9]} 47. Qb8 {[%clk 0:00:09.4]} 47... Qxe2+ {[%clk 0:00:26.9]} 48. Kh1
{[%clk 0:00:11]} 48... Qf1+ {[%clk 0:00:27.6]} 49. Kh2 {[%clk 0:00:12.5]} 49...
Ng4# {[%clk 0:00:29.1]} 0-1

[Event "*** Titled Tuesday 3|2 Blitz"]
[Site "Chess.com"]
[Date "2016.03.01"]
[Round "2"]
[White "E-Shaposhnikov"]
[Black "MITerryble"]
[Result "1/2-1/2"]
[WhiteElo "2498"]
[BlackElo "2624"]
[TimeControl "180+2"]
[EndTime "11:53:49 PST"]
[Termination "Game drawn by agreement"]

1. Nf3 {[%clk 0:02:59.1]} 1... Nf6 {[%clk 0:02:53.6]} 2. c4 {[%clk 0:03:00.1]}
2... e6 {[%clk 0:02:53.8]} 3. Nc3 {[%clk 0:03:00.8]} 3... b6 {[%clk 0:02:50.9]}
4. e4 {[%clk 0:02:58.4]} 4... Bb7 {[%clk 0:02:52.1]} 5. e5 {[%clk 0:02:58.9]}
5... Ne4 {[%clk 0:02:52.7]} 6. Bd3 {[%clk 0:02:59.3]} 6... Nxc3 {[%clk
0:02:51.2]} 7. dxc3 {[%clk 0:03:01.2]} 7... Be7 {[%clk 0:02:51.4]} 8. Qe2 {[%clk
0:02:45.7]} 8... d6 {[%clk 0:02:41.1]} 9. Bf4 {[%clk 0:02:42.4]} 9... Nd7 {[%clk
0:02:37.6]} 10. exd6 {[%clk 0:02:36.3]} 10... Bxd6 {[%clk 0:02:39.5]} 11. Bxd6
{[%clk 0:02:33.4]} 11... cxd6 {[%clk 0:02:41.4]} 12. Rd1 {[%clk 0:02:30.8]}
12... Qc7 {[%clk 0:02:36.3]} 13. Be4 {[%clk 0:02:20.7]} 13... Bxe4 {[%clk
0:02:26.6]} 14. Qxe4 {[%clk 0:02:22.6]} 14... O-O {[%clk 0:02:27.7]} 15. O-O
{[%clk 0:02:14.3]} 15... Rac8 {[%clk 0:02:19]} 16. b3 {[%clk 0:02:09.8]} 16...
Nf6 {[%clk 0:02:16.9]} 17. Qf4 {[%clk 0:02:09]} 17... d5 {[%clk 0:02:16.6]} 18.
Qxc7 {[%clk 0:02:05.5]} 18... Rxc7 {[%clk 0:02:18.5]} 19. cxd5 {[%clk
0:02:05.5]} 19... exd5 {[%clk 0:02:20.3]} 20. Rd3 {[%clk 0:02:04.3]} 20... Rfc8
{[%clk 0:02:20.7]} 21. Rc1 {[%clk 0:02:03]} 21... Ne4 {[%clk 0:02:21.7]} 22. c4
{[%clk 0:01:45]} 22... dxc4 {[%clk 0:02:20.7]} 23. Rxc4 {[%clk 0:01:46]} 23...
Rxc4 {[%clk 0:02:21.6]} 24. bxc4 {[%clk 0:01:47.9]} 24... g6 {[%clk 0:02:04.4]}
25. Rd4 {[%clk 0:01:21.2]} 25... Nc3 {[%clk 0:02:04.7]} 26. Rd7 {[%clk
0:01:22.6]} 26... Rxc4 {[%clk 0:01:57.2]} 27. Rxa7 {[%clk 0:01:12.5]} 27... Ne4
{[%clk 0:01:06.6]} 28. Ne1 {[%clk 0:00:46.3]} 28... Rc1 {[%clk 0:00:30]} 29. Kf1
{[%clk 0:00:47.3]} 29... Rb1 {[%clk 0:00:31]} 30. f3 {[%clk 0:00:43.7]} 30...
Nc3 {[%clk 0:00:31.8]} 31. Kf2 {[%clk 0:00:40.3]} 31... Rb2+ {[%clk 0:00:31.3]}
32. Kg3 {[%clk 0:00:35.7]} 32... Rxa2 {[%clk 0:00:28.2]} 33. Rb7 {[%clk
0:00:32.9]} 33... Nd5 {[%clk 0:00:21.4]} 34. Nd3 {[%clk 0:00:32.9]} 34... Ne3
{[%clk 0:00:20.4]} 35. Nf4 {[%clk 0:00:30.8]} 35... g5 {[%clk 0:00:19.5]} 36.
Nh5 {[%clk 0:00:25.9]} 36... Rxg2+ {[%clk 0:00:18.9]} 37. Kh3 {[%clk 0:00:27.1]}
37... h6 {[%clk 0:00:19.3]} 38. Rxb6 {[%clk 0:00:19.8]} 38... Rf2 {[%clk
0:00:15.5]} 39. Kg3 {[%clk 0:00:20.4]} 39... Rg2+ {[%clk 0:00:16.7]} 40. Kh3
{[%clk 0:00:21.5]} 40... Rf2 {[%clk 0:00:15.3]} 41. Kg3 {[%clk 0:00:22.8]} 41...
Rf1 {[%clk 0:00:16.6]} 42. Rxh6 {[%clk 0:00:21.4]} 42... Nf5+ {[%clk 0:00:16.2]}
43. Kg2 {[%clk 0:00:22.5]} 43... Nxh6 {[%clk 0:00:07.8]} 44. Kxf1 {[%clk
0:00:23.5]} 44... Kh7 {[%clk 0:00:09.2]} 1/2-1/2

[Event "*** Titled Tuesday 3|2 Blitz"]
[Site "Chess.com"]
[Date "2016.03.01"]
[Round "2"]
[White "ChessTrener"]
[Black "pKiLz5Rn9b"]
[Result "1-0"]
[WhiteElo "2573"]
[BlackElo "2514"]
[TimeControl "180+2"]
[EndTime "11:54:02 PST"]
[Termination "ChessTrener won by resignation"]

1. e4 {[%clk 0:03:01.9]} 1... e6 {[%clk 0:03:01.2]} 2. d4 {[%clk 0:03:02.4]}
2... d5 {[%clk 0:03:02.4]} 3. Nc3 {[%clk 0:03:03.2]} 3... Nf6 {[%clk 0:03:03.8]}
4. Bg5 {[%clk 0:03:03.8]} 4... Be7 {[%clk 0:03:05]} 5. e5 {[%clk 0:03:05]} 5...
Nfd7 {[%clk 0:03:06.4]} 6. Bxe7 {[%clk 0:03:06.9]} 6... Qxe7 {[%clk 0:03:07.9]}
7. Qd2 {[%clk 0:03:08.8]} 7... O-O {[%clk 0:03:04.8]} 8. f4 {[%clk 0:03:09.6]}
8... c5 {[%clk 0:03:06]} 9. Nf3 {[%clk 0:03:09.8]} 9... Nc6 {[%clk 0:03:07.1]}
10. dxc5 {[%clk 0:03:11.1]} 10... f6 {[%clk 0:03:07.7]} 11. exf6 {[%clk
0:03:11.8]} 11... Nxf6 {[%clk 0:03:09]} 12. Bd3 {[%clk 0:03:11.8]} 12... Qxc5
{[%clk 0:02:59.4]} 13. O-O-O {[%clk 0:03:08.9]} 13... Bd7 {[%clk 0:02:58.6]} 14.
Kb1 {[%clk 0:03:09.6]} 14... Rab8 {[%clk 0:02:52.1]} 15. Nb5 {[%clk 0:03:09.8]}
15... Kh8 {[%clk 0:02:15.5]} 16. Rhe1 {[%clk 0:03:05.6]} 16... a6 {[%clk
0:02:14.9]} 17. Nc3 {[%clk 0:03:05.1]} 17... b5 {[%clk 0:02:15.1]} 18. Ne5
{[%clk 0:02:53.8]} 18... Nxe5 {[%clk 0:02:11.3]} 19. Rxe5 {[%clk 0:02:53.4]}
19... Rbe8 {[%clk 0:02:08.4]} 20. h3 {[%clk 0:02:44.7]} 20... b4 {[%clk
0:02:02.1]} 21. Ne2 {[%clk 0:02:44.1]} 21... a5 {[%clk 0:02:03.1]} 22. Qe3
{[%clk 0:02:41.8]} 22... Qxe3 {[%clk 0:01:43.1]} 23. Rxe3 {[%clk 0:02:41.1]}
23... Kg8 {[%clk 0:01:35.8]} 24. Nd4 {[%clk 0:02:41.4]} 24... Re7 {[%clk
0:01:30.6]} 25. Rde1 {[%clk 0:02:42]} 25... Kf7 {[%clk 0:01:25.2]} 26. Nf3
{[%clk 0:02:38.4]} 26... Rfe8 {[%clk 0:01:21.2]} 27. g4 {[%clk 0:02:38.7]} 27...
g6 {[%clk 0:01:12.3]} 28. Kc1 {[%clk 0:02:27.2]} 28... Bc8 {[%clk 0:01:01.1]}
29. Kd2 {[%clk 0:02:15.3]} 29... Rd8 {[%clk 0:00:48.7]} 30. Ng5+ {[%clk
0:02:14.6]} 30... Kg7 {[%clk 0:00:50.2]} 31. Nxe6+ {[%clk 0:02:07.7]} 31... Bxe6
{[%clk 0:00:46.6]} 32. Rxe6 {[%clk 0:02:09.6]} 32... Rf7 {[%clk 0:00:46.3]} 33.
Kc1 {[%clk 0:02:00.8]} 33... Nd7 {[%clk 0:00:38.6]} 34. Rd6 {[%clk 0:01:48.7]}
34... Rc8 {[%clk 0:00:27.5]} 35. f5 {[%clk 0:01:34.2]} 35... Nc5 {[%clk
0:00:27]} 36. Rxd5 {[%clk 0:01:12.6]} 36... Nxd3+ {[%clk 0:00:28]} 37. Rxd3
{[%clk 0:01:14.5]} 37... gxf5 {[%clk 0:00:29.5]} 38. gxf5 {[%clk 0:01:16.4]}
38... Rxf5 {[%clk 0:00:30.8]} 39. Re7+ {[%clk 0:01:16.9]} 39... Rf7 {[%clk
0:00:29.1]} 40. Rxf7+ {[%clk 0:01:17.5]} 40... Kxf7 {[%clk 0:00:30]} 41. Rd5
{[%clk 0:01:19.4]} 41... Ra8 {[%clk 0:00:30.7]} 42. Rb5 {[%clk 0:01:14.5]} 42...
Ra7 {[%clk 0:00:26.6]} 43. Kd2 {[%clk 0:01:14.2]} 43... Ke6 {[%clk 0:00:27.8]}
44. Kd3 {[%clk 0:01:15.1]} 44... Kd6 {[%clk 0:00:29.2]} 45. Kc4 {[%clk 0:01:16]}
45... Kc6 {[%clk 0:00:16.7]} 46. Rh5 {[%clk 0:01:16.3]} 46... Re7 {[%clk
0:00:08.2]} 47. Rxa5 {[%clk 0:01:13]} 47... Re4+ {[%clk 0:00:09.3]} 48. Kb3
{[%clk 0:01:13.6]} 48... Re3+ {[%clk 0:00:10.7]} 49. Kxb4 {[%clk 0:01:14.5]}
49... Rxh3 {[%clk 0:00:12.6]} 50. c4 {[%clk 0:01:15.2]} 50... h5 {[%clk
0:00:13.1]} 51. Ra6+ {[%clk 0:01:16]} 51... Kb7 {[%clk 0:00:14]} 52. Rh6 {[%clk
0:01:17]} 52... h4 {[%clk 0:00:15.3]} 53. Kb5 {[%clk 0:01:17.1]} 53... Rh2
{[%clk 0:00:13.6]} 54. b4 {[%clk 0:01:18.2]} 54... h3 {[%clk 0:00:13.8]} 55.
Rh7+ {[%clk 0:01:19.6]} 55... Kc8 {[%clk 0:00:14.6]} 56. a4 {[%clk 0:01:20.7]}
56... Rh1 {[%clk 0:00:15.4]} 57. a5 {[%clk 0:01:21.7]} 57... h2 {[%clk 0:00:15]}
58. c5 {[%clk 0:01:22.9]} 58... Kb8 {[%clk 0:00:13.5]} 59. a6 {[%clk 0:01:23.7]}
1-0